[Event "*** Titled Tuesday Blitz"]
[Site "Chess.com"]
[Date "2020.05.26"]
[Round "10"]
[White "Gentle_Emperor"]
[Black "TudorAnton"]
[Result "0-1"]
[WhiteElo "2314"]
[BlackElo "2449"]
[TimeControl "180+1"]
[EndTime "12:02:44 PDT"]
[Termination "TudorAnton won by checkmate"]

1. d4 {[%clk 0:03:00.9]} 1... Nf6 {[%clk 0:02:59.3]} 2. Bf4 {[%clk 0:03:01.2]}
2... e6 {[%clk 0:02:58.2]} 3. e3 {[%clk 0:03:01.4]} 3... c5 {[%clk 0:02:54.1]}
4. Nf3 {[%clk 0:03:01.3]} 4... b6 {[%clk 0:02:48.5]} 5. c3 {[%clk 0:02:51.4]}
5... Be7 {[%clk 0:02:43.5]} 6. Nbd2 {[%clk 0:02:51.5]} 6... Bb7 {[%clk
0:02:38.8]} 7. Nc4 {[%clk 0:02:50.8]} 7... O-O {[%clk 0:02:33.5]} 8. Nd6 {[%clk
0:02:45.3]} 8... Ba6 {[%clk 0:02:24.6]} 9. Bxa6 {[%clk 0:02:41.4]} 9... Nxa6
{[%clk 0:02:25.5]} 10. h3 {[%clk 0:02:41.6]} 10... Ne8 {[%clk 0:02:19.2]} 11.
Nxe8 {[%clk 0:02:22.5]} 11... Rxe8 {[%clk 0:02:18.7]} 12. Qe2 {[%clk 0:02:23.4]}
12... Nc7 {[%clk 0:02:17.3]} 13. O-O {[%clk 0:02:20.5]} 13... d5 {[%clk
0:02:17.2]} 14. Ne5 {[%clk 0:02:15.2]} 14... Bd6 {[%clk 0:02:17.3]} 15. Qh5
{[%clk 0:02:11.1]} 15... g6 {[%clk 0:02:13.9]} 16. Qh6 {[%clk 0:02:09]} 16...
Bf8 {[%clk 0:02:13.9]} 17. Qg5 {[%clk 0:01:36.4]} 17... f6 {[%clk 0:02:13.4]}
18. Qg3 {[%clk 0:01:36.7]} 18... fxe5 {[%clk 0:02:13.2]} 19. Bxe5 {[%clk
0:01:37.6]} 19... Re7 {[%clk 0:02:09.2]} 20. Bf6 {[%clk 0:01:33.4]} 20... Ne8
{[%clk 0:02:08.2]} 21. Bxe7 {[%clk 0:01:31.4]} 21... Qxe7 {[%clk 0:02:06.3]} 22.
Rfe1 {[%clk 0:01:29.2]} 22... Nf6 {[%clk 0:02:03.8]} 23. f3 {[%clk 0:01:28.5]}
23... Qd7 {[%clk 0:02:01.3]} 24. Rad1 {[%clk 0:01:26.6]} 24... Bd6 {[%clk
0:02:00.8]} 25. Qh4 {[%clk 0:01:27.1]} 25... Rf8 {[%clk 0:01:58.4]} 26. f4
{[%clk 0:01:24]} 26... Ne4 {[%clk 0:01:57]} 27. g4 {[%clk 0:01:21.2]} 27... cxd4
{[%clk 0:01:56.2]} 28. cxd4 {[%clk 0:01:21.6]} 28... Bb4 {[%clk 0:01:56]} 29.
Re2 {[%clk 0:01:21.6]} 29... Qb5 {[%clk 0:01:53.3]} 30. Rc2 {[%clk 0:01:18.8]}
30... Bd6 {[%clk 0:01:50.7]} 31. g5 {[%clk 0:01:12.2]} 31... Qa6 {[%clk
0:01:36.9]} 32. Qg4 {[%clk 0:01:06.4]} 32... Re8 {[%clk 0:01:34.1]} 33. b3
{[%clk 0:01:01.4]} 33... Kf7 {[%clk 0:01:30.8]} 34. Rc6 {[%clk 0:00:53.7]} 34...
Qb5 {[%clk 0:01:22.8]} 35. Rdc1 {[%clk 0:00:52.9]} 35... Qd3 {[%clk 0:01:21.2]}
36. Qf3 {[%clk 0:00:47.9]} 36... Bb4 {[%clk 0:01:00.8]} 37. Rc7+ {[%clk
0:00:42.8]} 37... Re7 {[%clk 0:01:01.2]} 38. h4 {[%clk 0:00:40]} 38... Bd2
{[%clk 0:00:59.8]} 39. Rxe7+ {[%clk 0:00:38.2]} 39... Kxe7 {[%clk 0:01:00.7]}
40. Rc7+ {[%clk 0:00:30.7]} 40... Kd6 {[%clk 0:01:00.2]} 41. Rxh7 {[%clk
0:00:31]} 41... Bxe3+ {[%clk 0:01:00.1]} 42. Kg2 {[%clk 0:00:30.5]} 42... Qd2+
{[%clk 0:00:57.8]} 43. Kh3 {[%clk 0:00:27.9]} 43... Bxf4 {[%clk 0:00:53.6]} 44.
Kg4 {[%clk 0:00:25.3]} 44... Nf2+ {[%clk 0:00:50.3]} 45. Qxf2 {[%clk 0:00:22.6]}
45... Qxf2 {[%clk 0:00:51.2]} 46. Rd7+ {[%clk 0:00:08.1]} 46... Kxd7 {[%clk
0:00:48.7]} 47. h5 {[%clk 0:00:09]} 47... Qg3# {[%clk 0:00:47.1]} 0-1

[Event "*** Titled Tuesday Blitz"]
[Site "Chess.com"]
[Date "2020.05.26"]
[Round "10"]
[White "grandcoach"]
[Black "larisakalinina"]
[Result "1-0"]
[WhiteElo "2085"]
[BlackElo "1937"]
[TimeControl "180+1"]
[EndTime "12:02:45 PDT"]
[Termination "grandcoach won on time"]

1. e4 {[%clk 0:03:00.9]} 1... c5 {[%clk 0:02:59.7]} 2. b4 {[%clk 0:02:59.2]}
2... cxb4 {[%clk 0:02:57.7]} 3. a3 {[%clk 0:02:58.8]} 3... b3 {[%clk 0:02:56.5]}
4. cxb3 {[%clk 0:02:58.1]} 4... Nc6 {[%clk 0:02:56.1]} 5. d4 {[%clk 0:02:57.4]}
5... d5 {[%clk 0:02:56.3]} 6. e5 {[%clk 0:02:54.4]} 6... Bf5 {[%clk 0:02:45.9]}
7. Nf3 {[%clk 0:02:53.4]} 7... Qa5+ {[%clk 0:02:28.7]} 8. Bd2 {[%clk 0:02:46.7]}
8... Qb6 {[%clk 0:02:28]} 9. Be3 {[%clk 0:02:37.9]} 9... e6 {[%clk 0:02:15.7]}
10. Nc3 {[%clk 0:02:29.2]} 10... Rc8 {[%clk 0:02:12.6]} 11. Be2 {[%clk
0:02:11.6]} 11... Nh6 {[%clk 0:01:30.2]} 12. O-O {[%clk 0:02:09.1]} 12... Ng4
{[%clk 0:01:30.3]} 13. Na4 {[%clk 0:02:04.6]} 13... Qd8 {[%clk 0:01:20.8]} 14.
Bg5 {[%clk 0:01:59.3]} 14... f6 {[%clk 0:01:20.6]} 15. exf6 {[%clk 0:01:55.5]}
15... gxf6 {[%clk 0:01:20.6]} 16. Bh4 {[%clk 0:01:52]} 16... Bg7 {[%clk
0:01:02.8]} 17. Nc5 {[%clk 0:01:48.3]} 17... b6 {[%clk 0:01:00.8]} 18. Nd3
{[%clk 0:01:24.5]} 18... O-O {[%clk 0:00:59]} 19. Nf4 {[%clk 0:01:20.7]} 19...
Qd6 {[%clk 0:00:50.6]} 20. Nh5 {[%clk 0:01:15.2]} 20... Bh8 {[%clk 0:00:48.4]}
21. h3 {[%clk 0:01:08.5]} 21... Nxd4 {[%clk 0:00:33.8]} 22. hxg4 {[%clk
0:01:04.7]} 22... Nxe2+ {[%clk 0:00:30.9]} 23. Qxe2 {[%clk 0:01:03.7]} 23...
Bxg4 {[%clk 0:00:31.2]} 24. Ng3 {[%clk 0:00:56.3]} 24... e5 {[%clk 0:00:28.2]}
25. Rfd1 {[%clk 0:00:52.1]} 25... Qe6 {[%clk 0:00:20.7]} 26. Qd2 {[%clk
0:00:21.9]} 26... Bxf3 {[%clk 0:00:12.8]} 27. gxf3 {[%clk 0:00:22.8]} 27... d4
{[%clk 0:00:09.3]} 28. Qh6 {[%clk 0:00:20.7]} 28... Rc7 {[%clk 0:00:06.4]} 29.
Kg2 {[%clk 0:00:20.4]} 29... Bg7 {[%clk 0:00:05.6]} 30. Qh5 {[%clk 0:00:18.7]}
30... f5 {[%clk 0:00:02.4]} 31. Rg1 {[%clk 0:00:17.2]} 31... Kh8 {[%clk
0:00:01.2]} 32. Bg5 {[%clk 0:00:16.6]} 1-0

[Event "*** Titled Tuesday Blitz"]
[Site "Chess.com"]
[Date "2020.05.26"]
[Round "10"]
[White "rasmussvane"]
[Black "Aygehovit1992"]
[Result "1-0"]
[WhiteElo "2860"]
[BlackElo "2717"]
[TimeControl "180+1"]
[EndTime "12:02:47 PDT"]
[Termination "rasmussvane won on time"]

1. Nf3 {[%clk 0:03:00.9]} 1... Nf6 {[%clk 0:02:59.2]} 2. g3 {[%clk 0:03:01.4]}
2... g6 {[%clk 0:02:59.3]} 3. Bg2 {[%clk 0:03:02.3]} 3... Bg7 {[%clk 0:03:00.1]}
4. O-O {[%clk 0:03:03.2]} 4... O-O {[%clk 0:03:00.7]} 5. d4 {[%clk 0:03:03.7]}
5... d6 {[%clk 0:03:00.9]} 6. Re1 {[%clk 0:03:04.1]} 6... Nbd7 {[%clk 0:02:59]}
7. e4 {[%clk 0:03:04.6]} 7... e5 {[%clk 0:02:59.3]} 8. Nc3 {[%clk 0:03:05.3]}
8... c6 {[%clk 0:02:58.6]} 9. a4 {[%clk 0:03:05.6]} 9... exd4 {[%clk 0:02:54.5]}
10. Nxd4 {[%clk 0:03:06.5]} 10... Re8 {[%clk 0:02:55.2]} 11. h3 {[%clk
0:03:06.8]} 11... Nc5 {[%clk 0:02:51]} 12. Bf4 {[%clk 0:03:03.9]} 12... d5
{[%clk 0:02:37]} 13. exd5 {[%clk 0:02:59.8]} 13... Rxe1+ {[%clk 0:02:36.2]} 14.
Qxe1 {[%clk 0:03:00.7]} 14... Nxd5 {[%clk 0:02:35.8]} 15. Nxd5 {[%clk
0:03:00.9]} 15... cxd5 {[%clk 0:02:36.7]} 16. Be5 {[%clk 0:02:49.8]} 16... f6
{[%clk 0:02:06.5]} 17. Bf4 {[%clk 0:02:33.9]} 17... g5 {[%clk 0:02:05.8]} 18.
Bd2 {[%clk 0:02:32.6]} 18... Ne4 {[%clk 0:01:55.6]} 19. c4 {[%clk 0:02:27.6]}
19... Nxd2 {[%clk 0:01:54.6]} 20. Bxd5+ {[%clk 0:02:25.7]} 20... Kh8 {[%clk
0:01:54.9]} 21. Qxd2 {[%clk 0:02:25.6]} 21... Bxh3 {[%clk 0:01:54.2]} 22. Re1
{[%clk 0:02:12.3]} 22... Qd7 {[%clk 0:01:36]} 23. Qe2 {[%clk 0:02:06.9]} 23...
Bg4 {[%clk 0:01:17.1]} 24. Qe7 {[%clk 0:02:03.4]} 24... Qxa4 {[%clk 0:01:17]}
25. Qf7 {[%clk 0:01:45.8]} 25... Rf8 {[%clk 0:01:01.8]} 26. Qxb7 {[%clk
0:01:41.4]} 26... Bc8 {[%clk 0:00:32.8]} 27. Qc7 {[%clk 0:01:34.4]} 27... f5
{[%clk 0:00:13.3]} 28. Nf3 {[%clk 0:01:26]} 28... f4 {[%clk 0:00:10.8]} 29. Nxg5
{[%clk 0:01:22.5]} 29... fxg3 {[%clk 0:00:09.9]} 30. Nf7+ {[%clk 0:01:21.8]}
30... Kg8 {[%clk 0:00:09.9]} 31. Ng5+ {[%clk 0:00:34.5]} 31... Kh8 {[%clk
0:00:09.2]} 32. Qxg3 {[%clk 0:00:35]} 32... Qa5 {[%clk 0:00:08.2]} 33. Nf7+
{[%clk 0:00:23.6]} 33... Kg8 {[%clk 0:00:07.4]} 34. Ne5+ {[%clk 0:00:22.8]}
34... Kh8 {[%clk 0:00:02.4]} 35. Ng6+ {[%clk 0:00:22.7]} 35... hxg6 {[%clk
0:00:02.8]} 36. Qh4+ {[%clk 0:00:22.9]} 1-0

[Event "*** Titled Tuesday Blitz"]
[Site "Chess.com"]
[Date "2020.05.26"]
[Round "10"]
[White "Borsuk_Konstantin"]
[Black "kuba2006"]
[Result "0-1"]
[WhiteElo "2570"]
[BlackElo "2417"]
[TimeControl "180+1"]
[EndTime "12:02:48 PDT"]
[Termination "kuba2006 won on time"]

1. d4 {[%clk 0:03:00.9]} 1... Nf6 {[%clk 0:03:00.9]} 2. c4 {[%clk 0:03:00.9]}
2... d6 {[%clk 0:02:59]} 3. Nc3 {[%clk 0:03:00.6]} 3... Nbd7 {[%clk 0:02:57.7]}
4. e4 {[%clk 0:02:41.8]} 4... e5 {[%clk 0:02:58.6]} 5. Nge2 {[%clk 0:02:38]}
5... g6 {[%clk 0:02:57.2]} 6. f3 {[%clk 0:02:33.2]} 6... Bg7 {[%clk 0:02:56.4]}
7. d5 {[%clk 0:02:32.4]} 7... O-O {[%clk 0:02:50.2]} 8. Bg5 {[%clk 0:02:29.7]}
8... h6 {[%clk 0:02:41.1]} 9. Be3 {[%clk 0:02:28.3]} 9... Kh7 {[%clk 0:02:38.2]}
10. g4 {[%clk 0:02:17.3]} 10... b6 {[%clk 0:02:29.4]} 11. Ng3 {[%clk 0:02:10]}
11... Ng8 {[%clk 0:02:25.4]} 12. h4 {[%clk 0:02:07.1]} 12... Nc5 {[%clk
0:02:19.7]} 13. b4 {[%clk 0:01:57]} 13... Nb7 {[%clk 0:02:19.2]} 14. h5 {[%clk
0:01:52.6]} 14... a5 {[%clk 0:02:09.1]} 15. a3 {[%clk 0:01:50.1]} 15... Bd7
{[%clk 0:01:57.4]} 16. g5 {[%clk 0:01:41.3]} 16... axb4 {[%clk 0:01:06.3]} 17.
axb4 {[%clk 0:01:34.8]} 17... Rxa1 {[%clk 0:01:05.4]} 18. Qxa1 {[%clk
0:01:34.2]} 18... hxg5 {[%clk 0:01:05.7]} 19. Qa7 {[%clk 0:01:00.9]} 19... Bc8
{[%clk 0:00:53.2]} 20. Bh3 {[%clk 0:00:48.2]} 20... Bh6 {[%clk 0:00:29.6]} 21.
Ke2 {[%clk 0:00:30.3]} 21... Bxh3 {[%clk 0:00:20.7]} 22. Rxh3 {[%clk 0:00:26.4]}
22... Qc8 {[%clk 0:00:21.2]} 23. Rh1 {[%clk 0:00:24.8]} 23... Kg7 {[%clk
0:00:09.5]} 24. Kd3 {[%clk 0:00:21.3]} 24... g4 {[%clk 0:00:07.6]} 25. Bxh6+
{[%clk 0:00:08.3]} 25... Nxh6 {[%clk 0:00:08.5]} 26. Rf1 {[%clk 0:00:03.5]}
26... gxf3 {[%clk 0:00:08.2]} 27. Rxf3 {[%clk 0:00:03.9]} 27... Qg4 {[%clk
0:00:06.8]} 28. Re3 {[%clk 0:00:03.9]} 28... Qc8 {[%clk 0:00:05.3]} 29. Nb5
{[%clk 0:00:01.6]} 29... f5 {[%clk 0:00:04.7]} 0-1

[Event "*** Titled Tuesday Blitz"]
[Site "Chess.com"]
[Date "2020.05.26"]
[Round "10"]
[White "doons21"]
[Black "Zurability"]
[Result "0-1"]
[WhiteElo "2481"]
[BlackElo "2695"]
[TimeControl "180+1"]
[EndTime "12:02:52 PDT"]
[Termination "Zurability won by resignation"]

1. e4 {[%clk 0:03:00.9]} 1... c5 {[%clk 0:02:58.1]} 2. c3 {[%clk 0:03:00.5]}
2... d5 {[%clk 0:02:57.7]} 3. exd5 {[%clk 0:03:00.4]} 3... Qxd5 {[%clk
0:02:58.6]} 4. d4 {[%clk 0:03:00.1]} 4... Nc6 {[%clk 0:02:58.6]} 5. Nf3 {[%clk
0:03:00.5]} 5... Bg4 {[%clk 0:02:42.6]} 6. Be2 {[%clk 0:02:59.7]} 6... cxd4
{[%clk 0:02:42.7]} 7. cxd4 {[%clk 0:02:57.6]} 7... e6 {[%clk 0:02:42.9]} 8. O-O
{[%clk 0:02:57.4]} 8... Nf6 {[%clk 0:02:43.2]} 9. Nc3 {[%clk 0:02:57]} 9... Qd6
{[%clk 0:02:38.7]} 10. Nb5 {[%clk 0:02:36.4]} 10... Qd8 {[%clk 0:02:34.9]} 11.
Bf4 {[%clk 0:02:36.6]} 11... Nd5 {[%clk 0:02:35]} 12. Bg3 {[%clk 0:02:36.2]}
12... Be7 {[%clk 0:02:33.6]} 13. Rc1 {[%clk 0:02:33.2]} 13... O-O {[%clk
0:02:33.1]} 14. Ne5 {[%clk 0:02:27.2]} 14... Bxe2 {[%clk 0:02:29.9]} 15. Qxe2
{[%clk 0:02:23.5]} 15... Nxe5 {[%clk 0:02:27.4]} 16. dxe5 {[%clk 0:02:17.7]}
16... Qa5 {[%clk 0:02:01.6]} 17. a3 {[%clk 0:02:11.4]} 17... Qa6 {[%clk
0:01:54.2]} 18. Qc4 {[%clk 0:01:56.9]} 18... f6 {[%clk 0:01:40.3]} 19. Nc7
{[%clk 0:01:36.6]} 19... Qxc4 {[%clk 0:01:37.2]} 20. Rxc4 {[%clk 0:01:36.8]}
20... Rac8 {[%clk 0:01:35.8]} 21. Rfc1 {[%clk 0:01:24.6]} 21... Nb6 {[%clk
0:01:35.7]} 22. R4c2 {[%clk 0:01:17.6]} 22... Kf7 {[%clk 0:01:34.5]} 23. Nb5
{[%clk 0:01:08.6]} 23... Rxc2 {[%clk 0:01:23.7]} 24. Rxc2 {[%clk 0:01:08.4]}
24... Rc8 {[%clk 0:01:24.6]} 25. Rxc8 {[%clk 0:00:59.3]} 25... Nxc8 {[%clk
0:01:25.5]} 26. Kf1 {[%clk 0:00:53.6]} 26... a6 {[%clk 0:01:24.7]} 27. Nc3
{[%clk 0:00:30.5]} 27... Nb6 {[%clk 0:01:24.7]} 28. Nd1 {[%clk 0:00:30.2]} 28...
Nc4 {[%clk 0:01:24.4]} 29. exf6 {[%clk 0:00:29.3]} 29... Bxf6 {[%clk 0:01:22]}
30. b3 {[%clk 0:00:23]} 30... Nxa3 {[%clk 0:01:21.8]} 31. Ke2 {[%clk 0:00:23.5]}
31... Nb5 {[%clk 0:01:21.5]} 32. Kd3 {[%clk 0:00:23.9]} 32... e5 {[%clk
0:01:18.5]} 33. f4 {[%clk 0:00:22.3]} 33... exf4 {[%clk 0:01:18.3]} 34. Bxf4
{[%clk 0:00:23.2]} 34... Ke6 {[%clk 0:01:18.8]} 35. g4 {[%clk 0:00:23]} 35...
Kd5 {[%clk 0:01:18.7]} 36. Be3 {[%clk 0:00:23]} 36... Nd6 {[%clk 0:01:16.5]} 37.
Bd2 {[%clk 0:00:23]} 37... b6 {[%clk 0:01:13.9]} 38. Ne3+ {[%clk 0:00:23.4]}
38... Kc6 {[%clk 0:01:14]} 39. Ng2 {[%clk 0:00:20.6]} 39... a5 {[%clk 0:01:13]}
40. h4 {[%clk 0:00:21]} 40... Nb7 {[%clk 0:01:12.7]} 41. g5 {[%clk 0:00:20.9]}
41... Nc5+ {[%clk 0:01:12.4]} 42. Kc2 {[%clk 0:00:21.2]} 42... Be5 {[%clk
0:01:11.7]} 43. h5 {[%clk 0:00:21.4]} 43... Ne4 {[%clk 0:01:09.6]} 44. Bc1
{[%clk 0:00:20.7]} 44... b5 {[%clk 0:01:07]} 45. Nh4 {[%clk 0:00:19.6]} 45...
Ng3 {[%clk 0:01:02.9]} 46. h6 {[%clk 0:00:17.6]} 46... gxh6 {[%clk 0:01:03]} 47.
gxh6 {[%clk 0:00:17.7]} 47... Ne2 {[%clk 0:00:58.5]} 48. Bd2 {[%clk 0:00:16.3]}
48... Nd4+ {[%clk 0:00:58.3]} 49. Kb1 {[%clk 0:00:13.6]} 49... Nxb3 {[%clk
0:00:58.3]} 50. Be3 {[%clk 0:00:12.6]} 50... a4 {[%clk 0:00:56.2]} 51. Nf3
{[%clk 0:00:13.1]} 51... Bf6 {[%clk 0:00:55]} 52. Bg5 {[%clk 0:00:12.4]} 52...
Nd4 {[%clk 0:00:48.3]} 53. Nxd4+ {[%clk 0:00:11.2]} 53... Bxd4 {[%clk
0:00:47.7]} 54. Bd2 {[%clk 0:00:10.4]} 54... Kd5 {[%clk 0:00:48]} 55. Ka2 {[%clk
0:00:09.9]} 55... Kc4 {[%clk 0:00:48.9]} 0-1

[Event "*** Titled Tuesday Blitz"]
[Site "Chess.com"]
[Date "2020.05.26"]
[Round "10"]
[White "Abund"]
[Black "OK97"]
[Result "0-1"]
[WhiteElo "2608"]
[BlackElo "2777"]
[TimeControl "180+1"]
[EndTime "12:02:57 PDT"]
[Termination "OK97 won by checkmate"]

1. d4 {[%clk 0:03:00.9]} 1... Nf6 {[%clk 0:02:59.7]} 2. c4 {[%clk 0:03:00.7]}
2... e6 {[%clk 0:02:59.8]} 3. Nc3 {[%clk 0:03:01.1]} 3... Bb4 {[%clk 0:03:00.1]}
4. f3 {[%clk 0:03:01.5]} 4... O-O {[%clk 0:02:59]} 5. a3 {[%clk 0:02:59.7]} 5...
Bxc3+ {[%clk 0:02:58.7]} 6. bxc3 {[%clk 0:03:00.6]} 6... Nh5 {[%clk 0:02:58.4]}
7. g3 {[%clk 0:02:48]} 7... f5 {[%clk 0:02:48.1]} 8. Nh3 {[%clk 0:02:28.6]} 8...
d6 {[%clk 0:02:43.3]} 9. Bg2 {[%clk 0:02:25.7]} 9... Nc6 {[%clk 0:02:37.7]} 10.
O-O {[%clk 0:02:24.3]} 10... e5 {[%clk 0:02:35.4]} 11. e3 {[%clk 0:01:43.3]}
11... Nf6 {[%clk 0:02:19.6]} 12. e4 {[%clk 0:01:37.7]} 12... fxe4 {[%clk
0:02:15.3]} 13. fxe4 {[%clk 0:01:37.4]} 13... Qe8 {[%clk 0:01:58.2]} 14. Nf2
{[%clk 0:01:27.1]} 14... b6 {[%clk 0:01:45.4]} 15. c5 {[%clk 0:01:17.3]} 15...
dxc5 {[%clk 0:01:44.1]} 16. dxc5 {[%clk 0:01:16]} 16... Be6 {[%clk 0:01:38.1]}
17. Be3 {[%clk 0:01:13.1]} 17... Na5 {[%clk 0:01:35.8]} 18. cxb6 {[%clk
0:01:09.3]} 18... axb6 {[%clk 0:01:35.7]} 19. Qc1 {[%clk 0:01:01.7]} 19... Nb3
{[%clk 0:01:34.2]} 20. Qb2 {[%clk 0:00:58.3]} 20... Nxa1 {[%clk 0:01:34.2]} 21.
Rxa1 {[%clk 0:00:59.2]} 21... Qc6 {[%clk 0:01:22.4]} 22. Nd3 {[%clk 0:00:53.8]}
22... Ng4 {[%clk 0:01:22]} 23. Bd2 {[%clk 0:00:47]} 23... Rad8 {[%clk
0:01:18.6]} 24. h3 {[%clk 0:00:46.8]} 24... Rxd3 {[%clk 0:01:16.5]} 25. hxg4
{[%clk 0:00:47.1]} 25... Qc5+ {[%clk 0:01:11.8]} 26. Kh2 {[%clk 0:00:46.4]}
26... Qf2 {[%clk 0:01:10.6]} 27. Rf1 {[%clk 0:00:41.7]} 27... Qxg3+ {[%clk
0:01:06.4]} 28. Kg1 {[%clk 0:00:37.1]} 28... Rxf1+ {[%clk 0:01:01.3]} 29. Kxf1
{[%clk 0:00:38]} 29... Qxg4 {[%clk 0:00:49.4]} 30. Qb5 {[%clk 0:00:29.9]} 30...
Rd8 {[%clk 0:00:36.3]} 31. Be1 {[%clk 0:00:21.3]} 31... Qf4+ {[%clk 0:00:25.7]}
32. Kg1 {[%clk 0:00:19.7]} 32... Qe3+ {[%clk 0:00:24.5]} 33. Bf2 {[%clk
0:00:19.2]} 33... Rd1+ {[%clk 0:00:21.8]} 34. Bf1 {[%clk 0:00:17.1]} 34... Qg5+
{[%clk 0:00:21]} 35. Kh2 {[%clk 0:00:17.5]} 35... Qh5+ {[%clk 0:00:19]} 36. Kg3
{[%clk 0:00:17.8]} 36... Qg4+ {[%clk 0:00:16.6]} 37. Kh2 {[%clk 0:00:17.6]}
37... Qh5+ {[%clk 0:00:16]} 38. Kg3 {[%clk 0:00:17.9]} 38... h6 {[%clk
0:00:16.2]} 39. Be2 {[%clk 0:00:13.1]} 39... Qh3# {[%clk 0:00:16]} 0-1

[Event "*** Titled Tuesday Blitz"]
[Site "Chess.com"]
[Date "2020.05.26"]
[Round "10"]
[White "PawnEatingZombie"]
[Black "DucksParadise"]
[Result "1-0"]
[WhiteElo "2256"]
[BlackElo "2057"]
[TimeControl "180+1"]
[EndTime "12:02:57 PDT"]
[Termination "PawnEatingZombie won on time"]

1. d4 {[%clk 0:03:00.9]} 1... Nf6 {[%clk 0:02:58.2]} 2. c4 {[%clk 0:03:01.4]}
2... g6 {[%clk 0:02:58]} 3. Nc3 {[%clk 0:03:01.8]} 3... d5 {[%clk 0:02:58.2]} 4.
cxd5 {[%clk 0:03:01.7]} 4... Nxd5 {[%clk 0:02:59.1]} 5. e4 {[%clk 0:03:02]} 5...
Nxc3 {[%clk 0:02:59.2]} 6. bxc3 {[%clk 0:03:02.9]} 6... Bg7 {[%clk 0:03:00]} 7.
Bg5 {[%clk 0:03:03.5]} 7... c5 {[%clk 0:02:58.9]} 8. Rc1 {[%clk 0:03:02.4]} 8...
O-O {[%clk 0:02:55.8]} 9. d5 {[%clk 0:03:01.7]} 9... Qd6 {[%clk 0:02:44.5]} 10.
Nf3 {[%clk 0:02:57.4]} 10... Bg4 {[%clk 0:02:36.8]} 11. Be2 {[%clk 0:02:57]}
11... Nd7 {[%clk 0:02:36.2]} 12. O-O {[%clk 0:02:54.4]} 12... e6 {[%clk
0:02:06.9]} 13. Qd2 {[%clk 0:01:59.1]} 13... exd5 {[%clk 0:01:51.3]} 14. Bf4
{[%clk 0:01:50.8]} 14... Qe7 {[%clk 0:01:21.6]} 15. exd5 {[%clk 0:01:46.7]}
15... Rfe8 {[%clk 0:01:00.6]} 16. Rfe1 {[%clk 0:01:45.4]} 16... Qf6 {[%clk
0:00:44.3]} 17. h3 {[%clk 0:01:31.9]} 17... Bxf3 {[%clk 0:00:42.2]} 18. Bxf3
{[%clk 0:01:28.9]} 18... Ne5 {[%clk 0:00:43.1]} 19. Bxe5 {[%clk 0:01:01.1]}
19... Rxe5 {[%clk 0:00:44]} 20. d6 {[%clk 0:01:00.8]} 20... Rxe1+ {[%clk
0:00:40.1]} 21. Rxe1 {[%clk 0:00:59.2]} 21... Rd8 {[%clk 0:00:33.5]} 22. d7
{[%clk 0:00:48.2]} 22... Bf8 {[%clk 0:00:19.6]} 23. Bxb7 {[%clk 0:00:28.3]}
23... Kg7 {[%clk 0:00:19.1]} 24. c4 {[%clk 0:00:20.5]} 24... Bd6 {[%clk
0:00:11.1]} 25. Bc8 {[%clk 0:00:18]} 25... Be5 {[%clk 0:00:04.7]} 26. Qd5 {[%clk
0:00:15.1]} 26... Bd4 {[%clk 0:00:03.9]} 27. Re2 {[%clk 0:00:13.4]} 27... Qf4
{[%clk 0:00:01.1]} 28. Kh1 {[%clk 0:00:05.5]} 28... Qc1+ {[%clk 0:00:01]} 29.
Kh2 {[%clk 0:00:05.4]} 29... Qf4+ {[%clk 0:00:01.9]} 30. g3 {[%clk 0:00:05.7]}
30... Qf6 {[%clk 0:00:02.4]} 31. Kg2 {[%clk 0:00:05.6]} 31... Qf5 {[%clk
0:00:02.8]} 32. Qe4 {[%clk 0:00:03.6]} 32... Qxe4+ {[%clk 0:00:01.6]} 33. Rxe4
{[%clk 0:00:04.5]} 33... Bf6 {[%clk 0:00:01.3]} 34. Re8 {[%clk 0:00:04.8]} 1-0